Workbook

Sheet Лист1
A1: Школа | C1: ГБОУ "Васильевская КШИ им. Героя Советского Союза Н. Волостнова" | F1: Утвердил: | G1: должность | H1: директор
A2: Типовое примерное меню приготавливаемых блюд | G2: фамилия | H2: Савельев И.В.
A3: Возрастная категория | E3: 7-11 лет | G3: дата | H3: 1 | I3: 9 | J3: 2025
H4: день | I4: месяц | J4: год
A5: Неделя | B5: День недели | C5: Прием пищи | D5: Раздел меню | E5: Блюда | F5: Вес блюда, г | G5: Белки | H5: Жиры | I5: Углеводы | J5: Калорийность | K5: № рецептуры | L5: Цена
A6: 1 | B6: 1 | C6: Завтрак | D6: закуска | E6: Сыр порциями | F6: 60 | G6: 5 | H6: 6 | I6: 0 | J6: 67 | K6: 15
D7: гор.блюдо | E7: Котлеты рубленные из бройлер-цыплят с соусом | F7: 90 | G7: 8 | H7: 9 | I7: 10 | J7: 138 | K7: 295
D8: гор.блюдо | E8: Каша гречневая рассыпчатая | F8: 150 | G8: 6 | H8: 4 | I8: 40 | J8: 198 | K8: 171
D9: гор.напиток | E9: Чай черный с сахаром с лимоном | F9: 222 | G9: 0 | H9: 0 | I9: 10 | J9: 36 | K9: 377
D10: закуска | E10: Салат из белокачанной капусты с яблоком | F10: 40 | G10: 0 | H10: 3 | I10: 7 | J10: 50 | K10: 46
D11: хлеб | E11: Хлеб пшеничный | F11: 30 | G11: 2 | H11: 0 | I11: 15 | J11: 62 | L11: 66.76
D12: хлеб | E12: Хлеб сельский | F12: 20 | G12: 1 | H12: 0.2 | I12: 9 | J12: 36
D13: итого | F13: =SUM(F6:F12) -> 612 | G13: =SUM(G6:G12) -> 22.28 | H13: 22.44 | I13: 90.76 | J13: 587 | L13: =SUM(L6:L12) -> 66.76
A14: =A6 -> 1 | B14: =B6 -> 1 | C14: Завтрак 2 | D14: фрукты
D17: итого | F17: =SUM(F14:F16) -> 0 | G17: =SUM(G14:G16) -> 0 | H17: 0 | I17: 0 | J17: 0 | L17: 0
A18: =A6 -> 1 | B18: =B6 -> 1 | C18: Обед | D18: закуска
D19: 1 блюдо
D20: 2 блюдо
D21: гарнир
D22: напиток
D23: хлеб бел.
D24: хлеб черн.
D27: итого | F27: =SUM(F18:F26) -> 0 | G27: =SUM(G18:G26) -> 0 | H27: 0 | I27: 0 | J27: 0 | L27: 0
A28: =A6 -> 1 | B28: =B6 -> 1 | C28: Полдник | D28: булочное
D29: напиток
D32: итого | F32: =SUM(F28:F31) -> 0 | G32: =SUM(G28:G31) -> 0 | H32: 0 | I32: 0 | J32: 0 | L32: 0
A33: =A6 -> 1 | B33: =B6 -> 1 | C33: Ужин | D33: гор.блюдо
D34: гарнир
D35: напиток
D36: хлеб
D39: итого | F39: =SUM(F33:F38) -> 0 | G39: =SUM(G33:G38) -> 0 | H39: 0 | I39: 0 | J39: 0 | L39: 0
A40: =A6 -> 1 | B40: =B6 -> 1 | C40: Ужин 2 | D40: кисломол.
D41: булочное
D42: напиток
D43: фрукты
D46: итого | F46: =SUM(F40:F45) -> 0 | G46: =SUM(G40:G45) -> 0 | H46: 0 | I46: 0 | J46: 0 | L46: =SUM(L40:L48) -> 0
A47: =A6 -> 1 | B47: =B6 -> 1 | C47: Итого за день: | F47: =F13+F17+F27+F32+F39+F46 -> 612 | G47: =G13+G17+G27+G32+G39+G46 -> 22.28 | H47: 22.44 | I47: 90.76 | J47: 587 | K47: 0 | L47: =L13 -> 66.76
A48: 1 | B48: 2 | C48: Завтрак | D48: гор.блюдо | E48: Рагу из курицы | F48: 200 | G48: 13 | H48: 12 | I48: 17 | J48: 206 | K48: 289
D49: гор.напиток | E49: Какао с молоком | F49: 200 | G49: 4 | H49: 2 | I49: 25 | J49: 130 | K49: 382
D50: закуска | E50: Икра свекольная | F50: 60 | G50: 1 | H50: 7 | I50: 14 | J50: 111 | K50: 75
D51: хлеб | E51: Хлеб пшеничный | F51: 30 | G51: 2 | H51: 0 | I51: 15 | J51: 62
D52: хлеб | E52: Хлеб сельский | F52: 20 | G52: 1 | H52: 0 | I52: 9 | J52: 40
D53: фрукты | E53: Фрукты | F53: 100 | G53: 0 | H53: 0 | I53: 10 | J53: 36 | K53: 338 | L53: 66.67
D55: итого | F55: =SUM(F48:F54) -> 610 | G55: =SUM(G48:G54) -> 21 | H55: =SUM(H48:H54) -> 21 | I55: =SUM(I48:I54) -> 90 | J55: =SUM(J48:J54) -> 585 | L55: =SUM(L48:L54) -> 66.67
A56: =A48 -> 1 | B56: =B48 -> 2 | C56: Завтрак 2 | D56: фрукты
D59: итого | F59: =SUM(F56:F58) -> 0 | G59: =SUM(G56:G58) -> 0 | H59: =SUM(H56:H58) -> 0 | I59: =SUM(I56:I58) -> 0 | J59: =SUM(J56:J58) -> 0 | L59: =SUM(L56:L64) -> 0
A60: =A48 -> 1 | B60: =B48 -> 2 | C60: Обед | D60: закуска
D61: 1 блюдо
D62: 2 блюдо
D63: гарнир
D64: напиток
D65: хлеб бел.
D66: хлеб черн.
D69: итого | F69: =SUM(F60:F68) -> 0 | G69: =SUM(G60:G68) -> 0 | H69: =SUM(H60:H68) -> 0 | I69: =SUM(I60:I68) -> 0 | J69: =SUM(J60:J68) -> 0 | L69: =SUM(L66:L74) -> 0
A70: =A48 -> 1 | B70: =B48 -> 2 | C70: Полдник | D70: булочное
D71: напиток
D74: итого | F74: =SUM(F70:F73) -> 0 | G74: =SUM(G70:G73) -> 0 | H74: =SUM(H70:H73) -> 0 | I74: =SUM(I70:I73) -> 0 | J74: =SUM(J70:J73) -> 0 | L74: =SUM(L67:L73) -> 0
A75: =A48 -> 1 | B75: =B48 -> 2 | C75: Ужин | D75: гор.блюдо
D76: гарнир
D77: напиток
D78: хлеб
D81: итого | F81: =SUM(F75:F80) -> 0 | G81: =SUM(G75:G80) -> 0 | H81: =SUM(H75:H80) -> 0 | I81: =SUM(I75:I80) -> 0 | J81: =SUM(J75:J80) -> 0 | L81: =SUM(L75:L83) -> 0
A82: =A48 -> 1 | B82: =B48 -> 2 | C82: Ужин 2 | D82: кисломол.
D83: булочное
D84: напиток
D85: фрукты
D88: итого | F88: =SUM(F82:F87) -> 0 | G88: =SUM(G82:G87) -> 0 | H88: =SUM(H82:H87) -> 0 | I88: =SUM(I82:I87) -> 0 | J88: =SUM(J82:J87) -> 0 | L88: =SUM(L82:L90) -> 0
A89: =A48 -> 1 | B89: =B48 -> 2 | C89: Итого за день: | F89: =F55+F59+F69+F74+F81+F88 -> 610 | G89: =G55+G59+G69+G74+G81+G88 -> 21 | H89: =H55+H59+H69+H74+H81+H88 -> 21 | I89: =I55+I59+I69+I74+I81+I88 -> 90 | J89: =J55+J59+J69+J74+J81+J88 -> 585 | L89: =L55 -> 66.67
A90: 1 | B90: 3 | C90: Завтрак | D90: гор.блюдо | E90: Тефтели 2-й вариант из говядины с соусом | F90: 100 | G90: 13 | H90: 17 | I90: 9 | J90: 217 | K90: 279
D91: гор.блюдо | E91: Макаронные изделия отварные | F91: 150 | G91: 5 | H91: 4 | I91: 29 | J91: 155 | K91: 202
D92: гор.напиток | E92: Чай черный с сахаром c курагой | F92: 200 | G92: 1 | H92: 0 | I92: 22 | J92: 83 | K92: 377
D93: закуска | E93: Салат из моркови с изюмом | F93: 60 | G93: 1 | H93: 1 | I93: 10 | J93: 48 | K93: 66
D94: хлеб | E94: Хлеб пшеничный | F94: 30 | G94: 2 | H94: 0 | I94: 15 | J94: 62 | L94: 66.67
D97: итого | F97: =SUM(F90:F96) -> 540 | G97: =SUM(G90:G96) -> 22 | H97: =SUM(H90:H96) -> 22 | I97: =SUM(I90:I96) -> 85 | J97: =SUM(J90:J96) -> 565 | L97: 66.67
A98: =A90 -> 1 | B98: =B90 -> 3 | C98: Завтрак 2 | D98: фрукты
D101: итого | F101: =SUM(F98:F100) -> 0 | G101: =SUM(G98:G100) -> 0 | H101: =SUM(H98:H100) -> 0 | I101: =SUM(I98:I100) -> 0 | J101: =SUM(J98:J100) -> 0 | L101: =SUM(L98:L106) -> 0
A102: =A90 -> 1 | B102: =B90 -> 3 | C102: Обед | D102: закуска
D103: 1 блюдо
D104: 2 блюдо
D105: гарнир
D106: напиток
D107: хлеб бел.
D108: хлеб черн.
D111: итого | F111: =SUM(F102:F110) -> 0 | G111: =SUM(G102:G110) -> 0 | H111: =SUM(H102:H110) -> 0 | I111: =SUM(I102:I110) -> 0 | J111: =SUM(J102:J110) -> 0 | L111: =SUM(L108:L116) -> 0
A112: =A90 -> 1 | B112: =B90 -> 3 | C112: Полдник | D112: булочное
D113: напиток
D116: итого | F116: =SUM(F112:F115) -> 0 | G116: =SUM(G112:G115) -> 0 | H116: =SUM(H112:H115) -> 0 | I116: =SUM(I112:I115) -> 0 | J116: =SUM(J112:J115) -> 0 | L116: =SUM(L109:L115) -> 0
A117: =A90 -> 1 | B117: =B90 -> 3 | C117: Ужин | D117: гор.блюдо
D118: гарнир
D119: напиток
D120: хлеб
D123: итого | F123: =SUM(F117:F122) -> 0 | G123: =SUM(G117:G122) -> 0 | H123: =SUM(H117:H122) -> 0 | I123: =SUM(I117:I122) -> 0 | J123: =SUM(J117:J122) -> 0 | L123: =SUM(L117:L125) -> 0
A124: =A90 -> 1 | B124: =B90 -> 3 | C124: Ужин 2 | D124: кисломол.
D125: булочное
D126: напиток
D127: фрукты
D130: итого | F130: =SUM(F124:F129) -> 0 | G130: =SUM(G124:G129) -> 0 | H130: =SUM(H124:H129) -> 0 | I130: =SUM(I124:I129) -> 0 | J130: =SUM(J124:J129) -> 0 | L130: =SUM(L124:L132) -> 0
A131: =A90 -> 1 | B131: =B90 -> 3 | C131: Итого за день: | F131: =F97+F101+F111+F116+F123+F130 -> 540 | G131: =G97+G101+G111+G116+G123+G130 -> 22 | H131: =H97+H101+H111+H116+H123+H130 -> 22 | I131: =I97+I101+I111+I116+I123+I130 -> 85 | J131: =J97+J101+J111+J116+J123+J130 -> 565 | L131: =L97 -> 66.67
A132: 1 | B132: 4 | C132: Завтрак | D132: гор.блюдо | E132: Биточки рыбные с соусом | F132: 80 | G132: 7 | H132: 6 | I132: 10 | J132: 134 | K132: 234
D133: гор.блюдо | E133: Пюре картофельное | F133: 150 | G133: 5 | H133: 9 | I133: 20 | J133: 170 | K133: 312
D134: гор.напиток | E134: Чай черный с сахаром с лимоном | F134: 222 | G134: 0 | H134: 0 | I134: 10 | J134: 36 | K134: 377
D135: закуска | E135: Салат из белокачанной капусты | F135: 60 | G135: 1 | H135: 2 | I135: 4 | J135: 36 | K135: 45
D136: хлеб | E136: Хлеб пшеничный | F136: 30 | G136: 2 | H136: 0 | I136: 15 | J136: 62
D137: хлеб | E137: Хлеб сельский | F137: 20 | G137: 1 | H137: 0 | I137: 9 | J137: 36 | L137: 66.67
D139: итого | F139: =SUM(F132:F138) -> 562 | G139: =SUM(G132:G138) -> 16 | H139: =SUM(H132:H138) -> 17 | I139: =SUM(I132:I138) -> 68 | J139: =SUM(J132:J138) -> 474 | L139: =SUM(L132:L138) -> 66.67
A140: =A132 -> 1 | B140: =B132 -> 4 | C140: Завтрак 2 | D140: фрукты
D143: итого | F143: =SUM(F140:F142) -> 0 | G143: =SUM(G140:G142) -> 0 | H143: =SUM(H140:H142) -> 0 | I143: =SUM(I140:I142) -> 0 | J143: =SUM(J140:J142) -> 0 | L143: =SUM(L140:L148) -> 0
A144: =A132 -> 1 | B144: =B132 -> 4 | C144: Обед | D144: закуска
D145: 1 блюдо
D146: 2 блюдо
D147: гарнир
D148: напиток
D149: хлеб бел.
D150: хлеб черн.
D153: итого | F153: =SUM(F144:F152) -> 0 | G153: =SUM(G144:G152) -> 0 | H153: =SUM(H144:H152) -> 0 | I153: =SUM(I144:I152) -> 0 | J153: =SUM(J144:J152) -> 0 | L153: =SUM(L150:L158) -> 0
A154: =A132 -> 1 | B154: =B132 -> 4 | C154: Полдник | D154: булочное
D155: напиток
D158: итого | F158: =SUM(F154:F157) -> 0 | G158: =SUM(G154:G157) -> 0 | H158: =SUM(H154:H157) -> 0 | I158: =SUM(I154:I157) -> 0 | J158: =SUM(J154:J157) -> 0 | L158: =SUM(L151:L157) -> 0
A159: =A132 -> 1 | B159: =B132 -> 4 | C159: Ужин | D159: гор.блюдо
D160: гарнир
D161: напиток
D162: хлеб
D165: итого | F165: =SUM(F159:F164) -> 0 | G165: =SUM(G159:G164) -> 0 | H165: =SUM(H159:H164) -> 0 | I165: =SUM(I159:I164) -> 0 | J165: =SUM(J159:J164) -> 0 | L165: =SUM(L159:L167) -> 0
A166: =A132 -> 1 | B166: =B132 -> 4 | C166: Ужин 2 | D166: кисломол.
D167: булочное
D168: напиток
D169: фрукты
D172: итого | F172: =SUM(F166:F171) -> 0 | G172: =SUM(G166:G171) -> 0 | H172: =SUM(H166:H171) -> 0 | I172: =SUM(I166:I171) -> 0 | J172: =SUM(J166:J171) -> 0 | L172: =SUM(L166:L174) -> 0
A173: =A132 -> 1 | B173: =B132 -> 4 | C173: Итого за день: | F173: =F139+F143+F153+F158+F165+F172 -> 562 | G173: =G139+G143+G153+G158+G165+G172 -> 16 | H173: =H139+H143+H153+H158+H165+H172 -> 17 | I173: =I139+I143+I153+I158+I165+I172 -> 68 | J173: =J139+J143+J153+J158+J165+J172 -> 474 | L173: =L139 -> 66.67
A174: 1 | B174: 5 | C174: Завтрак | D174: гор.блюдо | E174: Плов с говядиной | F174: 200 | G174: 16 | H174: 19 | I174: 40 | J174: 402 | K174: 265
D175: гор.напиток | E175: Чай черный с сахаром и лимоном | F175: 222 | G175: 0 | H175: 0 | I175: 15 | J175: 62 | K175: 377
D176: закуска | E176: Салат из моркови с яблоками | F176: 60 | G176: 1 | H176: 0 | I176: 5 | J176: 22 | K176: 59
D177: хлеб | E177: Хлеб пшеничный | F177: 30 | G177: 2 | H177: 0 | I177: 15 | J177: 62
D178: хлеб | E178: Хлеб сельский | F178: 20 | G178: 1 | H178: 0 | I178: 9 | J178: 36 | L178: 66.67
D181: итого | F181: =SUM(F174:F180) -> 532 | G181: =SUM(G174:G180) -> 20 | H181: =SUM(H174:H180) -> 19 | I181: =SUM(I174:I180) -> 84 | J181: =SUM(J174:J180) -> 584 | L181: 66.67
A182: =A174 -> 1 | B182: =B174 -> 5 | C182: Завтрак 2 | D182: фрукты
D185: итого | F185: =SUM(F182:F184) -> 0 | G185: =SUM(G182:G184) -> 0 | H185: =SUM(H182:H184) -> 0 | I185: =SUM(I182:I184) -> 0 | J185: =SUM(J182:J184) -> 0 | L185: =SUM(L182:L190) -> 0
A186: =A174 -> 1 | B186: =B174 -> 5 | C186: Обед | D186: закуска
D187: 1 блюдо
D188: 2 блюдо
D189: гарнир
D190: напиток
D191: хлеб бел.
D192: хлеб черн.
D195: итого | F195: =SUM(F186:F194) -> 0 | G195: =SUM(G186:G194) -> 0 | H195: =SUM(H186:H194) -> 0 | I195: =SUM(I186:I194) -> 0 | J195: =SUM(J186:J194) -> 0 | L195: =SUM(L192:L200) -> 0
A196: =A174 -> 1 | B196: =B174 -> 5 | C196: Полдник | D196: булочное
D197: напиток
D200: итого | F200: =SUM(F196:F199) -> 0 | G200: =SUM(G196:G199) -> 0 | H200: =SUM(H196:H199) -> 0 | I200: =SUM(I196:I199) -> 0 | J200: =SUM(J196:J199) -> 0 | L200: =SUM(L193:L199) -> 0
A201: =A174 -> 1 | B201: =B174 -> 5 | C201: Ужин | D201: гор.блюдо
D202: гарнир
D203: напиток
D204: хлеб
D207: итого | F207: =SUM(F201:F206) -> 0 | G207: =SUM(G201:G206) -> 0 | H207: =SUM(H201:H206) -> 0 | I207: =SUM(I201:I206) -> 0 | J207: =SUM(J201:J206) -> 0 | L207: =SUM(L201:L209) -> 0
A208: =A174 -> 1 | B208: =B174 -> 5 | C208: Ужин 2 | D208: кисломол.
D209: булочное
D210: напиток
D211: фрукты
D214: итого | F214: =SUM(F208:F213) -> 0 | G214: =SUM(G208:G213) -> 0 | H214: =SUM(H208:H213) -> 0 | I214: =SUM(I208:I213) -> 0 | J214: =SUM(J208:J213) -> 0 | L214: =SUM(L208:L216) -> 0
A215: =A174 -> 1 | B215: =B174 -> 5 | C215: Итого за день: | F215: =F181+F185+F195+F200+F207+F214 -> 532 | G215: =G181+G185+G195+G200+G207+G214 -> 20 | H215: =H181+H185+H195+H200+H207+H214 -> 19 | I215: =I181+I185+I195+I200+I207+I214 -> 84 | J215: =J181+J185+J195+J200+J207+J214 -> 584 | L215: =L181 -> 66.67
A216: 1 | B216: 6 | C216: Завтрак | D216: гор.блюдо | E216: Картофель тушеный с луком | F216: 150 | G216: 6 | H216: 5 | I216: 21 | J216: 150 | K216: 145
D217: гор.напиток | E217: Чай с молоком | F217: 200 | G217: 1 | H217: 1 | I217: 15 | J217: 66 | K217: 378
D218: хлеб | E218: Хлеб пшеничный | F218: 30 | G218: 2 | H218: 0 | I218: 15 | J218: 62
D219: хлеб | E219: Хлеб сельский | F219: 20 | G219: 1 | H219: 0 | I219: 9 | J219: 36
D220: гор.блюдо | E220: Котлеты рубленные из бройлер-циплят с соусом | F220: 152 | G220: 8 | H220: 9 | I220: 10 | J220: 152 | K220: 295
D221: закуска | E221: Салат из белокочанной капусты с яблоками | F221: 60 | G221: 0 | H221: 3 | I221: 7 | J221: 50 | K221: 46 | L221: 66.67
D223: итого | F223: =SUM(F216:F222) -> 612 | G223: =SUM(G216:G222) -> 18 | H223: =SUM(H216:H222) -> 18 | I223: =SUM(I216:I222) -> 77 | J223: =SUM(J216:J222) -> 516 | L223: =SUM(L216:L222) -> 66.67
A224: =A216 -> 1 | B224: =B216 -> 6 | C224: Завтрак 2 | D224: фрукты
D227: итого | F227: =SUM(F224:F226) -> 0 | G227: =SUM(G224:G226) -> 0 | H227: =SUM(H224:H226) -> 0 | I227: =SUM(I224:I226) -> 0 | J227: =SUM(J224:J226) -> 0 | L227: =SUM(L224:L232) -> 0
A228: =A216 -> 1 | B228: =B216 -> 6 | C228: Обед | D228: закуска
D229: 1 блюдо
D230: 2 блюдо
D231: гарнир
D232: напиток
D233: хлеб бел.
D234: хлеб черн.
D237: итого | F237: =SUM(F228:F236) -> 0 | G237: =SUM(G228:G236) -> 0 | H237: =SUM(H228:H236) -> 0 | I237: =SUM(I228:I236) -> 0 | J237: =SUM(J228:J236) -> 0 | L237: =SUM(L234:L242) -> 0
A238: =A216 -> 1 | B238: =B216 -> 6 | C238: Полдник | D238: булочное
D239: напиток
D242: итого | F242: =SUM(F238:F241) -> 0 | G242: =SUM(G238:G241) -> 0 | H242: =SUM(H238:H241) -> 0 | I242: =SUM(I238:I241) -> 0 | J242: =SUM(J238:J241) -> 0 | L242: =SUM(L235:L241) -> 0
A243: =A216 -> 1 | B243: =B216 -> 6 | C243: Ужин | D243: гор.блюдо
D244: гарнир
D245: напиток
D246: хлеб
D249: итого | F249: =SUM(F243:F248) -> 0 | G249: =SUM(G243:G248) -> 0 | H249: =SUM(H243:H248) -> 0 | I249: =SUM(I243:I248) -> 0 | J249: =SUM(J243:J248) -> 0 | L249: =SUM(L243:L251) -> 0
A250: =A216 -> 1 | B250: =B216 -> 6 | C250: Ужин 2 | D250: кисломол.
D251: булочное
D252: напиток
D253: фрукты
D256: итого | F256: =SUM(F250:F255) -> 0 | G256: =SUM(G250:G255) -> 0 | H256: =SUM(H250:H255) -> 0 | I256: =SUM(I250:I255) -> 0 | J256: =SUM(J250:J255) -> 0 | L256: =SUM(L250:L258) -> 0
A257: =A216 -> 1 | B257: =B216 -> 6 | C257: Итого за день: | F257: =F223+F227+F237+F242+F249+F256 -> 612 | G257: =G223+G227+G237+G242+G249+G256 -> 18 | H257: =H223+H227+H237+H242+H249+H256 -> 18 | I257: =I223+I227+I237+I242+I249+I256 -> 77 | J257: =J223+J227+J237+J242+J249+J256 -> 516 | L257: =L223 -> 66.67
A258: 1 | B258: 7 | C258: Завтрак | D258: гор.блюдо
D260: гор.напиток
D261: хлеб
D262: фрукты
D265: итого | F265: =SUM(F258:F264) -> 0 | G265: =SUM(G258:G264) -> 0 | H265: =SUM(H258:H264) -> 0 | I265: =SUM(I258:I264) -> 0 | J265: =SUM(J258:J264) -> 0 | L265: 0
A266: =A258 -> 1 | B266: =B258 -> 7 | C266: Завтрак 2 | D266: фрукты
D269: итого | F269: =SUM(F266:F268) -> 0 | G269: =SUM(G266:G268) -> 0 | H269: =SUM(H266:H268) -> 0 | I269: =SUM(I266:I268) -> 0 | J269: =SUM(J266:J268) -> 0 | L269: =SUM(L266:L274) -> 0
A270: =A258 -> 1 | B270: =B258 -> 7 | C270: Обед | D270: закуска
D271: 1 блюдо
D272: 2 блюдо
... 232 more rows
